[Event "*** Titled Tuesday Blitz"]
[Site "Chess.com"]
[Date "2020.05.19"]
[Round "6"]
[White "tteshan"]
[Black "killer311"]
[Result "1/2-1/2"]
[WhiteElo "2235"]
[BlackElo "2401"]
[TimeControl "180+1"]
[EndTime "13:10:02 PDT"]
[Termination "Game drawn by agreement"]

1. e4 {[%clk 0:03:00.9]} 1... c6 {[%clk 0:02:59.2]} 2. d4 {[%clk 0:03:00]} 2...
d5 {[%clk 0:03:00.1]} 3. Nc3 {[%clk 0:03:00.2]} 3... dxe4 {[%clk 0:03:00.3]} 4.
Nxe4 {[%clk 0:03:00.8]} 4... Bf5 {[%clk 0:03:00.9]} 5. Ng3 {[%clk 0:03:00.5]}
5... Bg6 {[%clk 0:03:01.1]} 6. h4 {[%clk 0:03:00.8]} 6... h6 {[%clk 0:03:01.6]}
7. h5 {[%clk 0:03:01.2]} 7... Bh7 {[%clk 0:03:01.7]} 8. Nf3 {[%clk 0:03:01.6]}
8... Nf6 {[%clk 0:03:02.2]} 9. Bd3 {[%clk 0:03:01.6]} 9... Bxd3 {[%clk
0:03:01.5]} 10. Qxd3 {[%clk 0:03:01.7]} 10... e6 {[%clk 0:03:02.4]} 11. Bd2
{[%clk 0:03:01.7]} 11... c5 {[%clk 0:03:01.6]} 12. O-O-O {[%clk 0:02:40]} 12...
Nc6 {[%clk 0:03:01.2]} 13. Bc3 {[%clk 0:02:27.6]} 13... Nb4 {[%clk 0:02:59.4]}
14. Qb5+ {[%clk 0:02:21.7]} 14... Qd7 {[%clk 0:02:58.5]} 15. Qxd7+ {[%clk
0:02:11.8]} 15... Nxd7 {[%clk 0:02:59.4]} 16. Bxb4 {[%clk 0:02:04.3]} 16... cxb4
{[%clk 0:02:59]} 17. Rhe1 {[%clk 0:02:01.8]} 17... Bd6 {[%clk 0:02:51.1]} 18.
Nf5 {[%clk 0:01:58.8]} 18... Bf4+ {[%clk 0:02:49.1]} 19. Kb1 {[%clk 0:01:57.5]}
19... O-O {[%clk 0:02:48.1]} 20. Ne3 {[%clk 0:01:54.4]} 20... Nf6 {[%clk
0:02:45.9]} 21. Rh1 {[%clk 0:01:25.4]} 21... Rfd8 {[%clk 0:02:45]} 22. Rh4
{[%clk 0:01:22]} 22... Bc7 {[%clk 0:02:17.6]} 23. g4 {[%clk 0:01:13.8]} 23...
Bf4 {[%clk 0:02:14.9]} 24. Ng2 {[%clk 0:01:06.9]} 24... Bg5 {[%clk 0:02:14.6]}
25. Rhh1 {[%clk 0:01:05.7]} 25... Nxg4 {[%clk 0:02:13.5]} 26. Nxg5 {[%clk
0:00:45.2]} 26... hxg5 {[%clk 0:02:14.4]} 27. Rd2 {[%clk 0:00:45.4]} 27... Rd5
{[%clk 0:02:09.9]} 28. Rg1 {[%clk 0:00:38.2]} 28... Rad8 {[%clk 0:02:04.8]} 29.
c3 {[%clk 0:00:35.2]} 29... bxc3 {[%clk 0:02:02.9]} 30. bxc3 {[%clk 0:00:36.1]}
30... Nf6 {[%clk 0:02:01.8]} 31. Rh1 {[%clk 0:00:33.8]} 31... Ne4 {[%clk
0:02:01.1]} 32. Rc2 {[%clk 0:00:34.2]} 32... Rc8 {[%clk 0:01:58.1]} 33. Rh3
{[%clk 0:00:32.9]} 33... g4 {[%clk 0:01:51.5]} 34. Re3 {[%clk 0:00:32.7]} 34...
Nf6 {[%clk 0:01:43.7]} 35. Nf4 {[%clk 0:00:32.2]} 35... Rb5+ {[%clk 0:01:42.2]}
36. Rb2 {[%clk 0:00:28.9]} 36... Rxb2+ {[%clk 0:01:41.1]} 37. Kxb2 {[%clk
0:00:29.8]} 37... Kh7 {[%clk 0:01:37.8]} 38. Re5 {[%clk 0:00:21.8]} 38... Kh6
{[%clk 0:01:35.1]} 39. Kb3 {[%clk 0:00:21]} 39... Rc6 {[%clk 0:01:34]} 40. Rb5
{[%clk 0:00:20.3]} 40... b6 {[%clk 0:01:33]} 41. a4 {[%clk 0:00:19.5]} 41... Ne4
{[%clk 0:01:30.2]} 42. Ne2 {[%clk 0:00:14.2]} 42... Nxf2 {[%clk 0:01:29.3]} 43.
c4 {[%clk 0:00:13.5]} 43... Ne4 {[%clk 0:01:28.3]} 44. d5 {[%clk 0:00:12.3]}
44... exd5 {[%clk 0:01:27.1]} 45. cxd5 {[%clk 0:00:12.7]} 45... Rd6 {[%clk
0:01:26.8]} 46. Nd4 {[%clk 0:00:11.9]} 46... Kxh5 {[%clk 0:01:22.3]} 47. Nf5
{[%clk 0:00:11.3]} 47... Rd7 {[%clk 0:01:22.4]} 48. Nxg7+ {[%clk 0:00:10.5]}
48... Kh4 {[%clk 0:01:20.5]} 49. Nf5+ {[%clk 0:00:10.4]} 49... Kh3 {[%clk
0:01:19.4]} 50. d6 {[%clk 0:00:10.8]} 50... g3 {[%clk 0:01:18]} 51. Re5 {[%clk
0:00:10.1]} 51... g2 {[%clk 0:01:16]} 52. Rxe4 {[%clk 0:00:08.8]} 52... g1=Q
{[%clk 0:01:15]} 53. Rh4+ {[%clk 0:00:06.9]} 53... Kg2 {[%clk 0:01:15.2]} 54.
Rg4+ {[%clk 0:00:06.6]} 54... Kf2 {[%clk 0:01:15.7]} 55. Rxg1 {[%clk 0:00:06.8]}
55... Kxg1 {[%clk 0:01:16.2]} 56. Kc4 {[%clk 0:00:07.2]} 56... Kf2 {[%clk
0:01:12.3]} 57. Kd5 {[%clk 0:00:07.6]} 57... Kf3 {[%clk 0:01:12.7]} 58. Kc6
{[%clk 0:00:07.9]} 58... Rd8 {[%clk 0:01:12.2]} 59. Kc7 {[%clk 0:00:06.8]} 59...
Rh8 {[%clk 0:01:11.6]} 60. d7 {[%clk 0:00:06.7]} 60... Kf4 {[%clk 0:01:12.1]}
61. Nd6 {[%clk 0:00:04.9]} 61... Ra8 {[%clk 0:01:03.6]} 62. d8=Q {[%clk
0:00:04.6]} 62... Rxd8 {[%clk 0:01:03.3]} 63. Kxd8 {[%clk 0:00:05.5]} 63... f5
{[%clk 0:01:03.8]} 64. Kc7 {[%clk 0:00:04.5]} 64... Ke5 {[%clk 0:01:04]} 65.
Nxf5 {[%clk 0:00:04.6]} 65... Kxf5 {[%clk 0:01:03.5]} 66. Kb7 {[%clk 0:00:04.9]}
66... Ke6 {[%clk 0:01:02.2]} 67. Kxa7 {[%clk 0:00:04.9]} 67... Kd7 {[%clk
0:01:02.5]} 68. Kxb6 {[%clk 0:00:04.7]} 68... Kc8 {[%clk 0:01:02.6]} 69. a5
{[%clk 0:00:04.1]} 1/2-1/2

[Event "*** Titled Tuesday Blitz"]
[Site "Chess.com"]
[Date "2020.05.19"]
[Round "6"]
[White "Nayemhaque22"]
[Black "hypert"]
[Result "1-0"]
[WhiteElo "2188"]
[BlackElo "2364"]
[TimeControl "180+1"]
[EndTime "13:10:04 PDT"]
[Termination "Nayemhaque22 won by resignation"]

1. e4 {[%clk 0:03:00.9]} 1... c5 {[%clk 0:03:00.4]} 2. Nf3 {[%clk 0:02:59.1]}
2... Nc6 {[%clk 0:03:00.9]} 3. Bb5 {[%clk 0:02:57]} 3... e6 {[%clk 0:03:00.4]}
4. O-O {[%clk 0:02:55.2]} 4... Nge7 {[%clk 0:03:00.6]} 5. Bxc6 {[%clk
0:02:53.5]} 5... Nxc6 {[%clk 0:02:59.8]} 6. d4 {[%clk 0:02:53.6]} 6... cxd4
{[%clk 0:02:58.8]} 7. Nxd4 {[%clk 0:02:54]} 7... Qc7 {[%clk 0:02:52.7]} 8. Nc3
{[%clk 0:02:52.6]} 8... a6 {[%clk 0:02:53]} 9. Be3 {[%clk 0:02:48.4]} 9... Bd6
{[%clk 0:02:51.1]} 10. h3 {[%clk 0:02:46.6]} 10... Be5 {[%clk 0:02:49.5]} 11.
Qd2 {[%clk 0:02:43.8]} 11... O-O {[%clk 0:02:44]} 12. Rad1 {[%clk 0:02:40.6]}
12... b5 {[%clk 0:02:38.2]} 13. f4 {[%clk 0:02:31.3]} 13... Bxd4 {[%clk
0:02:34.8]} 14. Bxd4 {[%clk 0:02:30.6]} 14... Nxd4 {[%clk 0:02:26.7]} 15. Qxd4
{[%clk 0:02:30]} 15... f5 {[%clk 0:02:27]} 16. Nd5 {[%clk 0:02:09.7]} 16... Qxc2
{[%clk 0:02:01.6]} 17. exf5 {[%clk 0:01:48.6]} 17... Bb7 {[%clk 0:01:49]} 18.
fxe6 {[%clk 0:01:47.2]} 18... dxe6 {[%clk 0:01:46.2]} 19. Rd2 {[%clk 0:01:42.7]}
19... Qc4 {[%clk 0:01:28.7]} 20. Qxc4 {[%clk 0:01:29.4]} 20... bxc4 {[%clk
0:01:29.6]} 21. Nb6 {[%clk 0:01:29]} 21... Rad8 {[%clk 0:01:29.9]} 22. Nxc4
{[%clk 0:01:23.1]} 22... Rxd2 {[%clk 0:01:09.4]} 23. Nxd2 {[%clk 0:01:21.9]}
23... Rc8 {[%clk 0:01:10]} 24. Rf2 {[%clk 0:01:19]} 24... Rc1+ {[%clk
0:01:08.3]} 25. Kh2 {[%clk 0:01:17.9]} 25... Bd5 {[%clk 0:01:08.8]} 26. b3
{[%clk 0:01:15.2]} 26... Rc2 {[%clk 0:01:08.2]} 27. f5 {[%clk 0:01:04.2]} 27...
exf5 {[%clk 0:01:05.4]} 28. Kg3 {[%clk 0:00:56.8]} 28... g6 {[%clk 0:01:04.7]}
29. Nf3 {[%clk 0:00:52.2]} 29... Rc3 {[%clk 0:00:58.4]} 30. Rd2 {[%clk
0:00:51.2]} 30... Be4 {[%clk 0:00:45.3]} 31. Kf4 {[%clk 0:00:45.1]} 31... a5
{[%clk 0:00:40.8]} 32. Ng5 {[%clk 0:00:41.2]} 32... h6 {[%clk 0:00:39.5]} 33.
Nxe4 {[%clk 0:00:39.7]} 33... fxe4 {[%clk 0:00:40.4]} 34. Kxe4 {[%clk
0:00:38.7]} 34... a4 {[%clk 0:00:40.7]} 35. bxa4 {[%clk 0:00:33.8]} 35... Ra3
{[%clk 0:00:40.6]} 36. Kd4 {[%clk 0:00:26.5]} 36... Kf7 {[%clk 0:00:38.4]} 37.
Kc4 {[%clk 0:00:25.8]} 37... Rxa4+ {[%clk 0:00:38.6]} 38. Kb5 {[%clk 0:00:25.2]}
38... Ra3 {[%clk 0:00:38.3]} 39. Kb4 {[%clk 0:00:25.2]} 39... Ra8 {[%clk
0:00:38.8]} 40. a4 {[%clk 0:00:24.7]} 40... Rb8+ {[%clk 0:00:38]} 41. Ka3 {[%clk
0:00:24.6]} 41... Ra8 {[%clk 0:00:38.1]} 42. Rd5 {[%clk 0:00:24.4]} 42... Ke6
{[%clk 0:00:38.2]} 43. Rb5 {[%clk 0:00:24]} 43... Kd6 {[%clk 0:00:34.4]} 44.
Rb6+ {[%clk 0:00:23.5]} 44... Kc5 {[%clk 0:00:34.5]} 45. Rxg6 {[%clk 0:00:23.6]}
45... Rh8 {[%clk 0:00:35.1]} 46. h4 {[%clk 0:00:23.1]} 46... h5 {[%clk
0:00:34.2]} 47. Rg5+ {[%clk 0:00:20.3]} 47... Kc4 {[%clk 0:00:30.2]} 48. a5
{[%clk 0:00:19.7]} 48... Rh6 {[%clk 0:00:30.8]} 49. Ka4 {[%clk 0:00:19]} 49...
Rh8 {[%clk 0:00:26.6]} 50. Rb5 {[%clk 0:00:18.4]} 50... Rg8 {[%clk 0:00:24]} 51.
Rb4+ {[%clk 0:00:17.9]} 51... Kc5 {[%clk 0:00:23.6]} 52. Rb5+ {[%clk 0:00:17.8]}
52... Kc4 {[%clk 0:00:23.6]} 53. Rg5 {[%clk 0:00:17.3]} 53... Rh8 {[%clk
0:00:21.8]} 54. a6 {[%clk 0:00:17.2]} 54... Rh6 {[%clk 0:00:21.1]} 55. Ka5
{[%clk 0:00:17]} 55... Kb3 {[%clk 0:00:19.3]} 56. a7 {[%clk 0:00:15]} 56... Rh8
{[%clk 0:00:19.1]} 57. Rb5+ {[%clk 0:00:14.9]} 1-0

[Event "*** Titled Tuesday Blitz"]
[Site "Chess.com"]
[Date "2020.05.19"]
[Round "6"]
[White "Sychev_Klementy"]
[Black "gilbert_gm"]
[Result "1-0"]
[WhiteElo "2833"]
[BlackElo "2601"]
[TimeControl "180+1"]
[EndTime "13:10:06 PDT"]
[Termination "Sychev_Klementy won by checkmate"]

1. e4 {[%clk 0:03:00.9]} 1... c6 {[%clk 0:03:00]} 2. d4 {[%clk 0:02:59.5]} 2...
d5 {[%clk 0:03:00.9]} 3. e5 {[%clk 0:03:00.1]} 3... Bf5 {[%clk 0:03:00.2]} 4.
Nf3 {[%clk 0:03:00.4]} 4... e6 {[%clk 0:03:00.4]} 5. Be2 {[%clk 0:03:01.2]} 5...
Nd7 {[%clk 0:02:59.9]} 6. O-O {[%clk 0:03:01.4]} 6... Bg6 {[%clk 0:02:59.6]} 7.
a4 {[%clk 0:03:00.7]} 7... a6 {[%clk 0:02:53.3]} 8. a5 {[%clk 0:02:57.9]} 8...
h6 {[%clk 0:02:50.9]} 9. c3 {[%clk 0:02:56]} 9... Ne7 {[%clk 0:02:49.5]} 10. b4
{[%clk 0:02:54.4]} 10... Nf5 {[%clk 0:02:48]} 11. Na3 {[%clk 0:02:46.9]} 11...
Be7 {[%clk 0:02:44]} 12. Nc2 {[%clk 0:02:46.5]} 12... Bh7 {[%clk 0:02:38.2]} 13.
Bd3 {[%clk 0:02:42.5]} 13... g5 {[%clk 0:02:31.4]} 14. g4 {[%clk 0:02:21.2]}
14... Ng7 {[%clk 0:02:24.3]} 15. Bxh7 {[%clk 0:02:19.7]} 15... Rxh7 {[%clk
0:02:25.2]} 16. Qd3 {[%clk 0:02:15.7]} 16... Nf8 {[%clk 0:02:23.9]} 17. Nfe1
{[%clk 0:02:00.5]} 17... h5 {[%clk 0:02:23.5]} 18. h3 {[%clk 0:01:37.4]} 18...
Ng6 {[%clk 0:02:21.7]} 19. Ng2 {[%clk 0:01:32.3]} 19... hxg4 {[%clk 0:02:09.9]}
20. hxg4 {[%clk 0:01:31.1]} 20... Qd7 {[%clk 0:02:01]} 21. f4 {[%clk 0:01:05]}
21... gxf4 {[%clk 0:01:46.5]} 22. Bxf4 {[%clk 0:01:03.6]} 22... O-O-O {[%clk
0:01:45.3]} 23. Bg3 {[%clk 0:01:02.3]} 23... Bg5 {[%clk 0:01:38.2]} 24. Rf3
{[%clk 0:00:59.2]} 24... Rdh8 {[%clk 0:01:32.5]} 25. Raf1 {[%clk 0:00:57.4]}
25... Ne8 {[%clk 0:01:32.7]} 26. Nce3 {[%clk 0:00:50.8]} 26... Rh1+ {[%clk
0:01:24.4]} 27. Kf2 {[%clk 0:00:49.9]} 27... Rxf1+ {[%clk 0:01:25.3]} 28. Qxf1
{[%clk 0:00:49.6]} 28... f6 {[%clk 0:01:13.1]} 29. Ke2 {[%clk 0:00:45.3]} 29...
fxe5 {[%clk 0:00:52.3]} 30. Rf7 {[%clk 0:00:42.2]} 30... Qd8 {[%clk 0:00:52.5]}
31. dxe5 {[%clk 0:00:34.1]} 31... Nc7 {[%clk 0:00:39.8]} 32. Rg7 {[%clk
0:00:28.2]} 32... Rg8 {[%clk 0:00:34.3]} 33. Qf7 {[%clk 0:00:24.3]} 33... Rxg7
{[%clk 0:00:34.4]} 34. Qxg7 {[%clk 0:00:24.2]} 34... Qe8 {[%clk 0:00:27.5]} 35.
Ne1 {[%clk 0:00:16.6]} 35... Nb5 {[%clk 0:00:27.5]} 36. Kd3 {[%clk 0:00:08.7]}
36... Bxe3 {[%clk 0:00:25.8]} 37. Kxe3 {[%clk 0:00:08.6]} 37... Nxc3 {[%clk
0:00:24.3]} 38. Nd3 {[%clk 0:00:07.5]} 38... Ne4 {[%clk 0:00:24.6]} 39. Nc5
{[%clk 0:00:04.9]} 39... Nxc5 {[%clk 0:00:24.3]} 40. bxc5 {[%clk 0:00:05.1]}
40... Nf8 {[%clk 0:00:22.9]} 41. Bh4 {[%clk 0:00:04.3]} 41... Nd7 {[%clk
0:00:20.7]} 42. Be7 {[%clk 0:00:04.4]} 42... b6 {[%clk 0:00:18.6]} 43. axb6
{[%clk 0:00:03.6]} 43... a5 {[%clk 0:00:18.6]} 44. Kd4 {[%clk 0:00:03.8]} 44...
Kb7 {[%clk 0:00:18.8]} 45. Bd6 {[%clk 0:00:03.9]} 45... a4 {[%clk 0:00:18.7]}
46. Kc3 {[%clk 0:00:04]} 46... d4+ {[%clk 0:00:17.3]} 47. Kxd4 {[%clk
0:00:02.8]} 47... a3 {[%clk 0:00:18.2]} 48. Kc3 {[%clk 0:00:03.2]} 48... a2
{[%clk 0:00:19.1]} 49. Kb2 {[%clk 0:00:03.5]} 49... Ka6 {[%clk 0:00:19.5]} 50.
Kxa2 {[%clk 0:00:03]} 50... Kb5 {[%clk 0:00:19.4]} 51. b7 {[%clk 0:00:02.5]}
51... Nxc5 {[%clk 0:00:18.5]} 52. b8=Q+ {[%clk 0:00:02.2]} 52... Qxb8 {[%clk
0:00:17.8]} 53. Bxb8 {[%clk 0:00:02.6]} 53... Nd3 {[%clk 0:00:18.7]} 54. Qd7
{[%clk 0:00:02.2]} 54... Nb4+ {[%clk 0:00:19.6]} 55. Kb3 {[%clk 0:00:02.6]}
55... Nd5 {[%clk 0:00:20.3]} 56. Qb7+ {[%clk 0:00:02.8]} 56... Kc5 {[%clk
0:00:20.4]} 57. Ba7+ {[%clk 0:00:02.8]} 57... Nb6 {[%clk 0:00:21.1]} 58. Qxb6+
{[%clk 0:00:03.1]} 58... Kd5 {[%clk 0:00:22]} 59. Qd4# {[%clk 0:00:03.1]} 1-0

[Event "*** Titled Tuesday Blitz"]
[Site "Chess.com"]
[Date "2020.05.19"]
[Round "6"]
[White "Koalaskakistis"]
[Black "vovachesss"]
[Result "0-1"]
[WhiteElo "2474"]
[BlackElo "2623"]
[TimeControl "180+1"]
[EndTime "13:10:07 PDT"]
[Termination "vovachesss won on time"]

1. f4 {[%clk 0:02:58.6]} 1... e5 {[%clk 0:02:56.3]} 2. fxe5 {[%clk 0:02:59.5]}
2... d6 {[%clk 0:02:56.7]} 3. exd6 {[%clk 0:03:00.4]} 3... Bxd6 {[%clk
0:02:56.7]} 4. Nf3 {[%clk 0:02:58.3]} 4... g5 {[%clk 0:02:55.6]} 5. g3 {[%clk
0:02:58.5]} 5... g4 {[%clk 0:02:55.5]} 6. Nh4 {[%clk 0:02:58.4]} 6... Ne7 {[%clk
0:02:56.4]} 7. d4 {[%clk 0:02:57.3]} 7... Ng6 {[%clk 0:02:51.2]} 8. Nxg6 {[%clk
0:02:57.8]} 8... hxg6 {[%clk 0:02:52.1]} 9. Qd3 {[%clk 0:02:58.2]} 9... Qe7
{[%clk 0:02:35.9]} 10. Bg2 {[%clk 0:02:49]} 10... c5 {[%clk 0:02:34.5]} 11. Nc3
{[%clk 0:02:42.2]} 11... cxd4 {[%clk 0:02:27.6]} 12. Nd5 {[%clk 0:02:39.4]}
12... Qe6 {[%clk 0:02:08.3]} 13. Qxd4 {[%clk 0:02:27.2]} 13... Qe5 {[%clk
0:01:13.1]} 14. Qxe5+ {[%clk 0:02:04.2]} 14... Bxe5 {[%clk 0:01:13]} 15. Bf4
{[%clk 0:02:04.4]} 15... Bxf4 {[%clk 0:01:06.1]} 16. gxf4 {[%clk 0:02:05.3]}
16... Na6 {[%clk 0:01:05]} 17. O-O-O {[%clk 0:02:01.6]} 17... Rb8 {[%clk
0:01:02.7]} 18. e4 {[%clk 0:01:55.7]} 18... Be6 {[%clk 0:00:53.3]} 19. Nf6+
{[%clk 0:01:54.3]} 19... Ke7 {[%clk 0:00:52.8]} 20. e5 {[%clk 0:01:53.9]} 20...
Nc5 {[%clk 0:00:39.5]} 21. b4 {[%clk 0:01:16.2]} 21... Nd7 {[%clk 0:00:38.7]}
22. Ne4 {[%clk 0:01:16.7]} 22... Rh4 {[%clk 0:00:28]} 23. Nd6 {[%clk 0:01:08.2]}
23... b6 {[%clk 0:00:25]} 24. Bc6 {[%clk 0:00:52.3]} 24... Rbh8 {[%clk
0:00:23.6]} 25. Ne4 {[%clk 0:00:50.7]} 25... Rxh2 {[%clk 0:00:18.9]} 26. Rhg1
{[%clk 0:00:50]} 26... Re2 {[%clk 0:00:15.4]} 27. Ng5 {[%clk 0:00:46]} 27...
Rhh2 {[%clk 0:00:14.2]} 28. Be4 {[%clk 0:00:39.2]} 28... Bf5 {[%clk 0:00:14.5]}
29. Bxf5 {[%clk 0:00:08]} 29... gxf5 {[%clk 0:00:15.4]} 30. Nxf7 {[%clk
0:00:08.3]} 30... Rxc2+ {[%clk 0:00:15.8]} 31. Kb1 {[%clk 0:00:08.6]} 31... Rb2+
{[%clk 0:00:16.7]} 32. Ka1 {[%clk 0:00:09]} 32... Rxa2+ {[%clk 0:00:17.3]} 33.
Kb1 {[%clk 0:00:09.6]} 33... Rab2+ {[%clk 0:00:17.4]} 34. Ka1 {[%clk 0:00:09.4]}
34... Rxb4 {[%clk 0:00:16]} 35. Nd6 {[%clk 0:00:08.1]} 35... Nc5 {[%clk
0:00:14.6]} 36. Nc8+ {[%clk 0:00:07.2]} 36... Ke8 {[%clk 0:00:14.2]} 37. Nd6+
{[%clk 0:00:06.9]} 37... Kd7 {[%clk 0:00:13.9]} 38. Nxf5+ {[%clk 0:00:05.9]}
38... Kc6 {[%clk 0:00:13.8]} 39. Nd4+ {[%clk 0:00:05.2]} 39... Kb7 {[%clk
0:00:11.6]} 40. e6 {[%clk 0:00:01.9]} 40... Rxd4 {[%clk 0:00:11.2]} 41. Rxd4
{[%clk 0:00:02.3]} 41... Nb3+ {[%clk 0:00:11.7]} 42. Kb1 {[%clk 0:00:02.6]}
42... Nxd4 {[%clk 0:00:12.6]} 43. f5 {[%clk 0:00:01.8]} 43... Nxf5 {[%clk
0:00:12.2]} 44. Rf1 {[%clk 0:00:02.3]} 44... Rh5 {[%clk 0:00:10.3]} 45. e7
{[%clk 0:00:01.6]} 45... Nxe7 {[%clk 0:00:10.7]} 46. Rf7 {[%clk 0:00:02.5]}
46... Re5 {[%clk 0:00:11.3]} 47. Rg7 {[%clk 0:00:03.3]} 47... Re4 {[%clk
0:00:11.9]} 0-1

[Event "*** Titled Tuesday Blitz"]
[Site "Chess.com"]
[Date "2020.05.19"]
[Round "6"]
[White "Spartakus1975"]
[Black "gena217"]
[Result "0-1"]
[WhiteElo "2691"]
[BlackElo "2867"]
[TimeControl "180+1"]
[EndTime "13:10:10 PDT"]
[Termination "gena217 won by resignation"]

1. e4 {[%clk 0:03:00.9]} 1... c6 {[%clk 0:02:54.8]} 2. d3 {[%clk 0:02:56]} 2...
d5 {[%clk 0:02:55.7]} 3. Nd2 {[%clk 0:02:53.9]} 3... g6 {[%clk 0:02:54.2]} 4.
Ngf3 {[%clk 0:02:53.9]} 4... Bg7 {[%clk 0:02:54]} 5. d4 {[%clk 0:02:52.9]} 5...
Nh6 {[%clk 0:02:45.1]} 6. Bd3 {[%clk 0:02:47.7]} 6... O-O {[%clk 0:02:43.7]} 7.
O-O {[%clk 0:02:47.2]} 7... Nd7 {[%clk 0:02:23.9]} 8. Re1 {[%clk 0:02:29.6]}
8... dxe4 {[%clk 0:02:13.5]} 9. Nxe4 {[%clk 0:02:28.6]} 9... Nf5 {[%clk
0:02:13.4]} 10. c3 {[%clk 0:02:27.2]} 10... Nf6 {[%clk 0:02:11]} 11. Nxf6+
{[%clk 0:02:23.8]} 11... exf6 {[%clk 0:02:10.4]} 12. Bf4 {[%clk 0:02:19.7]}
12... Be6 {[%clk 0:02:09.4]} 13. h3 {[%clk 0:02:11.9]} 13... Re8 {[%clk
0:02:05.7]} 14. Qc2 {[%clk 0:02:07.6]} 14... Qd7 {[%clk 0:02:04.9]} 15. Re2
{[%clk 0:02:03.8]} 15... b5 {[%clk 0:01:51]} 16. Rae1 {[%clk 0:01:59.9]} 16...
Nd6 {[%clk 0:01:45.8]} 17. Nd2 {[%clk 0:01:52.7]} 17... Bf8 {[%clk 0:01:40.7]}
18. a3 {[%clk 0:01:41.8]} 18... a5 {[%clk 0:01:33.4]} 19. Nb3 {[%clk 0:01:39.3]}
19... Nb7 {[%clk 0:01:21.6]} 20. h4 {[%clk 0:01:31.7]} 20... Bd5 {[%clk
0:01:03.5]} 21. Nd2 {[%clk 0:01:16.5]} 21... Nd6 {[%clk 0:00:54.3]} 22. Bxd6
{[%clk 0:01:12.3]} 22... Bxd6 {[%clk 0:00:52.5]} 23. Be4 {[%clk 0:01:12.4]}
23... Be6 {[%clk 0:00:47.9]} 24. g3 {[%clk 0:01:10.6]} 24... f5 {[%clk
0:00:46.9]} 25. Bg2 {[%clk 0:01:09.8]} 25... Bf8 {[%clk 0:00:45.3]} 26. Nf3
{[%clk 0:01:08.6]} 26... f6 {[%clk 0:00:42]} 27. h5 {[%clk 0:01:01.1]} 27... Bc4
{[%clk 0:00:39.7]} 28. Rxe8 {[%clk 0:00:57.2]} 28... Rxe8 {[%clk 0:00:40.6]} 29.
Rxe8 {[%clk 0:00:56.8]} 29... Qxe8 {[%clk 0:00:41.5]} 30. Qd2 {[%clk 0:00:54.6]}
30... Bd5 {[%clk 0:00:23.1]} 31. Nh4 {[%clk 0:00:48.1]} 31... Bxg2 {[%clk
0:00:20.6]} 32. Kxg2 {[%clk 0:00:44.8]} 32... Kf7 {[%clk 0:00:21]} 33. hxg6+
{[%clk 0:00:35.4]} 33... hxg6 {[%clk 0:00:21.9]} 34. f3 {[%clk 0:00:25.4]} 34...
Qe6 {[%clk 0:00:21.2]} 35. Kf2 {[%clk 0:00:22.5]} 35... g5 {[%clk 0:00:19.7]}
36. Ng2 {[%clk 0:00:20.2]} 36... Bd6 {[%clk 0:00:20.3]} 37. f4 {[%clk
0:00:16.7]} 37... Kg6 {[%clk 0:00:18.8]} 38. Qe3 {[%clk 0:00:15.9]} 38... Qe4
{[%clk 0:00:15.7]} 39. Qxe4 {[%clk 0:00:14]} 39... fxe4 {[%clk 0:00:16.6]} 40.
Ke3 {[%clk 0:00:12.7]} 40... Kf5 {[%clk 0:00:17.1]} 41. b3 {[%clk 0:00:05.3]}
41... Bxa3 {[%clk 0:00:14.8]} 42. fxg5 {[%clk 0:00:04.2]} 42... fxg5 {[%clk
0:00:15.3]} 43. g4+ {[%clk 0:00:05]} 43... Kxg4 {[%clk 0:00:14.6]} 44. Kxe4
{[%clk 0:00:05.9]} 44... Kh3 {[%clk 0:00:14.4]} 45. Ne3 {[%clk 0:00:04.4]} 45...
g4 {[%clk 0:00:13]} 46. c4 {[%clk 0:00:03.2]} 46... bxc4 {[%clk 0:00:10.8]} 47.
bxc4 {[%clk 0:00:03.7]} 47... a4 {[%clk 0:00:10.9]} 48. d5 {[%clk 0:00:03.6]}
48... cxd5+ {[%clk 0:00:11.4]} 49. cxd5 {[%clk 0:00:02.3]} 49... g3 {[%clk
0:00:11.6]} 50. Kd3 {[%clk 0:00:03.2]} 50... Bd6 {[%clk 0:00:08.4]} 51. Kc4
{[%clk 0:00:02.8]} 51... a3 {[%clk 0:00:08.5]} 52. Kb3 {[%clk 0:00:02.3]} 52...
g2 {[%clk 0:00:09.2]} 53. Nxg2 {[%clk 0:00:02.2]} 53... Kxg2 {[%clk 0:00:10.1]}
54. Ka2 {[%clk 0:00:01.5]} 54... Kf3 {[%clk 0:00:10.4]} 55. Kb3 {[%clk
0:00:02.4]} 55... Ke4 {[%clk 0:00:11]} 56. Ka2 {[%clk 0:00:03.3]} 56... Kxd5
{[%clk 0:00:11.7]} 57. Kb3 {[%clk 0:00:04.2]} 57... Kd4 {[%clk 0:00:11.6]} 58.
Ka2 {[%clk 0:00:05.1]} 58... Kc4 {[%clk 0:00:12.2]} 59. Ka1 {[%clk 0:00:05.6]}
59... Kb3 {[%clk 0:00:12.8]} 60. Kb1 {[%clk 0:00:05.6]} 60... a2+ {[%clk
0:00:12.8]} 0-1